[Event "1st FIDE Olympiad DIS 2023"]
[Site "Belgrade"]
[Date "2023.02.02"]
[Round "4.19"]
[White "Zivic, Dragan"]
[Black "Kimsanboyev, Axadxon"]
[Result "1/2-1/2"]
[ECO "B26"]
[WhiteElo "2186"]
[BlackElo "1600"]
[Annotator "TA"]
[PlyCount "108"]
[EventDate "2023.01.30"]
[EventType "team-tourn"]
[EventCountry "SRB"]
[SourceTitle "playchess.com"]
[Source "ChessBase"]
[SourceQuality "1"]
[WhiteTeam "Serbia"]
[BlackTeam "Uzbekistan"]
[WhiteTeamCountry "SRB"]
[BlackTeamCountry "UZB"]
[TimeControl "40/5400+30:1800+30"]

{[%evp 16,108,-2,-16,-15,-1668,-12,-21,-10,-12,-3,-45,-30,-47,-24,-39,-52,-52,-52,-50,-41,-46,-8,-24,0,-52,-34,-38,0,0,0,0,46,19,26,28,125,104,115,78,77,94,215,222,205,164,167,118,109,97,122,119,158,150,146,148,138,140,142,141,124,0,0,0,0,0,0,0,0,0,0,0,0,0,0,0,0,0,0,0,0,0,0,0,0,0,0,0,0,0,0,0,0,0,0]} 1. e4 {[%emt 0:00:10]} c5 {[%emt 0:00:14]} 2. Nc3 {[%emt 0:00:13]} d6 {[%emt 0:00:09]} 3. g3 {[%emt 0:00:22]} Nc6 {[%emt 0:00:10]} 4. Bg2 {[%emt 0:00:47]} g6 {[%emt 0:00:16]} 5. d3 {[%emt 0:01:07]} Bg7 {[%emt 0:00:10]} 6. Be3 {[%emt 0:00:44]} e5 {[%emt 0:00:26]} 7. Qd2 {[%emt 0:03:31]} Nge7 {[%emt 0:03:46]} 8. Bh6 {[%emt 0:02:36]} O-O {[%emt 0:00:22]} 9. h4 {[%emt 0:02:38]} Bxh6 {[%emt 0:00:13] B26: Closed Sicilian: 3 g3, lines with early Be3.} 10. Qf4 {[%emt 0:00:24][%mdl 8192]} Bg5 $2 (10... exf4 $19 11. gxf4 Qb6) 11. Qxg5 $11 f6 {[%emt 0:00:02]} 12. Qd2 {[%emt 0:09:01] [#]} h5 $146 {[%emt 0:00:40]} ({Predecessor:} 12... Nd4 13. Nge2 Bg4 14. Nxd4 cxd4 15. Ne2 Qb6 16. c4 dxc3 17. Nxc3 Rac8 18. O-O Be6 19. Kh2 Nc6 {0-1 Stearman,J (2349)-Bocharov,D (2524) Titled Tuesday intern op 28th Apr blitz 2020 (3)}) 13. Bh3 {[%emt 0:05:29]} Kg7 {[%emt 0:08:42]} 14. O-O-O {[%emt 0:03:00]} Nd4 {[%emt 0:14:35]} 15. f3 {[%emt 0:02:23]} Bxh3 {[%emt 0:05:13]} 16. Rxh3 {[%emt 0:01:11]} Qd7 {[%emt 0:00:16][%cal Od4f3] Against g4} 17. Rh2 {[%emt 0:00:39]} b5 {[%emt 0:01:52]} 18. Nce2 {[%emt 0:01:27]} d5 {[%emt 0:08:11]} 19. Kb1 {[%emt 0:03:50]} Rad8 {[%emt 0:01:53]} 20. Rg2 {[%emt 0:03:46]} ({Better is} 20. Nxd4 $11 cxd4 21. Ne2) 20... Nxe2 {[%emt 0:11:49]} 21. Rxe2 {[%emt 0:01:00]} d4 {[%emt 0:13:57]} 22. Rg2 {[%emt 0:04:24]} c4 {[%emt 0:00:36]} 23. g4 {[%emt 0:00:36]} Rh8 {[%emt 0:00:22]} (23... hxg4 $11 24. fxg4 Rc8) 24. Ne2 $14 {[%emt 0:06:23][%cal Bg1e2,Be2g3,Bg3h5][%mdl 32]} Rc8 {[%emt 0:03:46]} (24... hxg4 {is interesting.} 25. Rxg4 Rc8 26. Rdg1 Qd6) 25. Rdg1 {[%emt 0:01:18]} Qd6 {[%emt 0:02:29]} (25... hxg4 $11 26. Rxg4 Qd6) 26. gxh5 $16 {[%emt 0:01:30][%cal Rg2g6] And now Rxg6+ would win.} Rxh5 {[%emt 0:00:11] [#]} 27. Rxg6+ $3 {[%emt 0:01:12][%mdl 512]} Nxg6 {[%emt 0:00:32] [#]} 28. Ng3 $1 {[%emt 0:00:11]} Kh7 {[%emt 0:06:09]} 29. Nxh5 $18 {[%emt 0:01:33] dxc4 is the strong threat.} Rg8 {[%emt 0:00:37]} 30. Rg4 {[%emt 0:08:23]} Qe6 {[%emt 0:09:29]} 31. Qg2 {[%emt 0:10:07]} (31. a3 $18) 31... Qf7 {[%emt 0:03:59][%cal Og6h4]} 32. Qg1 {[%emt 0:01:38]} (32. Qf1 {simplifies} Ne7 33. Ng3 a5 34. Rxg8 Qxg8 35. Qh3) 32... cxd3 {[%emt 0:00:50]} 33. cxd3 {[%emt 0:00:06]} Kh6 {[%emt 0:00:49] [#]} 34. Nxf6 {[%emt 0:15:23][%mdl 512]} Qxf6 {[%emt 0:00:13] [#]} 35. h5 $1 {[%emt 0:00:04][%mdl 512]} Ne7 {[%emt 0:00:42] Strongly threatening ...Rxg4.} 36. Rxg8 {[%emt 0:00:21]} Nxg8 {[%emt 0:00:01]} 37. Qxg8 {[%emt 0:00:12] Threatens to win with Qe8.} Kxh5 $16 {[%emt 0:00:01][%mdl 4096] Endgame [#] KQ-KQ} 38. Qe8+ {[%emt 0:01:53]} (38. Qg4+ $1 $16 Kh6 39. Qh3+ Kg6 40. Kc2) 38... Kh4 $11 {[%emt 0:00:05] The position is equal.} 39. Qxb5 {[%emt 0:00:29]} Qxf3 {[%emt 0:00:11][%cal Rf3d1]} 40. a3 {[%emt 0:00:34]} (40. Qxe5 $2 Qd1#) 40... Qd1+ {[%emt 0:00:52]} 41. Ka2 {[%emt 0:30:11]} Kg4 {[%emt 0:30:17]} 42. Qxe5 {[%emt 0:05:11]} Qxd3 {[%emt 0:00:24]} 43. Qd5 {[%emt 0:01:36]} Kf4 {[%emt 0:03:37]} 44. e5 {[%emt 0:00:00] Hoping for e6.} Kf5 {[%emt 0:00:00]} 45. e6+ {[%emt 0:00:00]} Kf6 {[%emt 0:00:00]} 46. Qd7 {[%emt 0:00:00]} Qc4+ {[%emt 0:00:00]} 47. Kb1 {[%emt 0:00:00] Qf7+ would be deadly.} d3 {[%emt 0:00:00]} 48. e7 {[%emt 0:00:00]} Qc2+ {[%emt 0:00:00]} 49. Ka2 {[%emt 0:00:00]} Qc4+ {[%emt 0:00:00]} 50. Ka1 {[%emt 0:00:00]} Qc1+ {[%emt 0:00:00]} 51. Ka2 {[%emt 0:00:00]} Qc4+ {[%emt 0:00:00]} 52. Kb1 {[%emt 0:00:00]} Qc2+ {[%emt 0:00:00]} 53. Ka1 {[%emt 0:00:00]} Qc1+ {[%emt 0:00:00]} 54. Ka2 {[%emt 0:00:00]} Qc4+ {[%emt 0:00:26] Blacks defense is rewarded with a draw. An exciting game.   Weighted Error Value: White=0.23 (precise) /Black=0.30} 1/2-1/2

[Event "1st FIDE Olympiad DIS 2023"]
[Site "Belgrade"]
[Date "2023.02.02"]
[Round "4.19"]
[White "Paal-Szucs, Attila"]
[Black "Darpan, Inani"]
[Result "1/2-1/2"]
[ECO "B50"]
[WhiteElo "2141"]
[BlackElo "2016"]
[Annotator "TA"]
[PlyCount "82"]
[EventDate "2023.01.30"]
[EventType "team-tourn"]
[EventCountry "SRB"]
[SourceTitle "playchess.com"]
[Source "ChessBase"]
[SourceQuality "1"]
[WhiteTeam "Hungary"]
[BlackTeam "India"]
[WhiteTeamCountry "HUN"]
[BlackTeamCountry "IND"]
[TimeControl "40/5400+30:1800+30"]

{[%evp 9,82,22,31,16,7,0,0,0,0,0,0,0,0,-28,8,16,13,5,0,0,13,0,17,12,28,0,0,9,21,0,4,0,110,111,98,106,137,135,184,171,403,397,441,440,583,583,1274,1358,1350,1338,1318,1316,1300,1244,29964,29961,3926,2512,29994,29979,29979,29980,6411,12,12,0,0,0,0,0,0,0,0,0,0]} 1. e4 {[%emt 0:00:10]} c5 {[%emt 0:00:20]} 2. Nf3 {[%emt 0:00:17]} a6 {[%emt 0:01:32]} 3. Nc3 {[%emt 0:02:28]} d6 {[%emt 0:01:10]} 4. d4 {[%emt 0:00:31]} cxd4 {[%emt 0:00:13]} 5. Qxd4 {[%emt 0:00:23]} Nc6 {[%emt 0:01:10]} 6. Qe3 {[%emt 0:10:34] B50: Sicilian: 2...d6, Miscellaneous.} Nf6 {[%emt 0:00:09]} 7. h3 {[%emt 0:00:19]} g6 {[%emt 0:00:14]} 8. Be2 {[%emt 0:02:51]} Bg7 {[%emt 0:00:00]} 9. O-O {[%emt 0:00:30]} O-O {[%emt 0:00:00]} 10. Rd1 {[%emt 0:02:24]} Qc7 {[%emt 0:00:40]} 11. Rb1 {[%emt 0:07:57] [#]} Nb4 $146 {[%emt 0:03:54]} ({Predecessor:} 11... b5 12. b3 Bb7 13. Bb2 e6 14. Qf4 Ne5 15. a3 Nh5 16. Qe3 Rac8 17. Nd4 Rfd8 18. Bxh5 gxh5 {1-0 Tahay,A (2400)-Perez Garcia,J (2014) Sitges Sunway op 9th 2022 (1)}) 12. a3 {[%emt 0:03:21]} Nc6 {[%emt 0:07:16]} (12... Nxc2 $2 13. Qd2 $18) 13. Nd5 {[%emt 0:01:25]} Nxd5 {[%emt 0:08:31]} 14. exd5 {[%emt 0:00:33]} Ne5 {[%emt 0:00:26]} 15. Nxe5 {[%emt 0:04:12]} Bxe5 {[%emt 0:00:54]} 16. Bd3 {[%emt 0:02:24]} Bd7 {[%emt 0:06:10]} 17. Qe2 {[%emt 0:01:06]} (17. Qf3 {is more complex.} e6 18. Bh6 Rfe8 19. Be4) 17... Rfe8 {[%emt 0:05:49]} 18. Be3 {[%emt 0:01:16]} b5 {[%emt 0:14:38]} 19. c4 {[%emt 0:00:39][%cal Rc4b5]} bxc4 {[%emt 0:06:55]} (19... Rab8 $5 {[%cal Rb5c4]}) 20. Bxc4 {[%emt 0:00:17]} a5 {[%emt 0:02:06] [#]} (20... Qa5 $11) 21. b4 $1 $16 {[%emt 0:00:17]} axb4 {[%emt 0:00:58]} 22. axb4 {[%emt 0:00:08][%cal Ba3b4,Bb4b5,Bb5b6][%mdl 32]} Qb7 {[%emt 0:23:26]} 23. b5 {[%emt 0:01:26]} Rec8 {[%emt 0:04:37]} (23... Ra5 $16 {was worth a try.}) 24. b6 $18 {[%emt 0:00:32]} Ra4 $2 {[%emt 0:01:36]} (24... f5 {was called for.} 25. Bb5 Bxb5 26. Qxb5 Kg7) 25. Bb5 {[%emt 0:01:27]} Bxb5 {[%emt 0:01:22]} 26. Qxb5 {[%emt 0:00:04]} Rac4 {[%emt 0:02:24]} 27. Rdc1 {[%emt 0:01:36]} Rc2 {[%emt 0:07:00]} 28. Rxc2 {[%emt 0:01:33]} Rxc2 {[%emt 0:00:05]} 29. Bh6 {[%emt 0:02:29][%cal Rb5e8] [#]} Rc8 {[%emt 0:00:20] Against Qe8+} 30. Rc1 {[%emt 0:00:17]} Rxc1+ {[%emt 0:00:36]} 31. Bxc1 {[%emt 0:00:17][%mdl 4096] Endgame Hoping for Qc6. KQB-KQB} Bd4 {[%emt 0:00:45]} 32. Bh6 {[%emt 0:00:54][%cal Rb5e8]} Qb8 {[%emt 0:00:14]} 33. b7 {[%emt 0:00:26]} Ba7 {[%emt 0:00:08]} 34. Qc6 {[%emt 0:00:16]} f6 {[%emt 0:00:23]} 35. Qc8+ {[%emt 0:01:48]} Kf7 {[%emt 0:00:00]} 36. Qe6+ $2 {[%emt 0:01:40]} (36. Be3 $18 {White wants to mate with Bxa7.} Qxb7 37. Qxb7 Bxe3 38. fxe3) 36... Ke8 $11 {[%emt 0:00:09] The position is equal.} 37. Be3 {[%emt 0:00:15]} (37. Qc8+ Kf7 38. Be3 Qxb7 39. Qxb7 Bxe3 40. fxe3 h5 41. Qd7 h4) (37. Qg8+ {seems wilder.} Kd7 38. Qxh7 Qxb7 39. Qxg6 Qxd5 40. Qg4+) 37... Qxb7 {[%emt 0:00:45]} 38. Qg8+ {[%emt 0:00:38]} Kd7 {[%emt 0:00:04]} 39. Qe6+ {[%emt 0:00:48]} Kd8 {[%emt 0:00:08]} 40. Qg8+ {[%emt 0:02:30]} Kd7 {[%emt 0:00:45]} 41. Qe6+ {[%emt 0:30:43]} Kd8 {[%emt 0:00:08] Blacks defense is rewarded with a draw.   Weighted Error Value: White=0.26 (precise) /Black=0.75} 1/2-1/2

[Event "1st FIDE Olympiad DIS 2023"]
[Site "Belgrade"]
[Date "2023.02.02"]
[Round "4.20"]
[White "Naveen, Kumar A."]
[Black "Acs, Gabor"]
[Result "0-1"]
[ECO "D00"]
[WhiteElo "2014"]
[BlackElo "2101"]
[Annotator "TA"]
[PlyCount "67"]
[EventDate "2023.01.30"]
[EventType "team-tourn"]
[EventCountry "SRB"]
[SourceTitle "playchess.com"]
[Source "ChessBase"]
[SourceQuality "1"]
[WhiteTeam "India"]
[BlackTeam "Hungary"]
[WhiteTeamCountry "IND"]
[BlackTeamCountry "HUN"]
[TimeControl "40/5400+30:1800+30"]

{[%evp 11,67,0,6,-14,0,4,5,8,22,10,16,-12,28,0,0,0,0,0,0,-7,0,-17,0,-91,-101,-108,-106,-119,-115,-160,-157,-185,-163,-162,-142,-164,-164,-167,-150,-204,-120,-170,-174,-166,-169,-164,-163,-160,-159,-138,-129,-184,-152,-733,-729,-700,-691,-733]} 1. d4 {[%emt 0:00:11]} d5 {[%emt 0:00:03]} 2. Bf4 {[%emt 0:00:12]} Nf6 {[%emt 0:00:12]} 3. e3 {[%emt 0:00:24]} c5 {[%emt 0:00:38]} 4. c3 {[%emt 0:00:21]} Nc6 {[%emt 0:00:09]} 5. Nd2 {[%emt 0:00:24]} Bf5 {[%emt 0:03:10]} 6. Ngf3 {[%emt 0:02:25]} e6 {[%emt 0:06:29]} 7. Bb5 {[%emt 0:00:48] D00: 1 d4 d5: Unusual lines.} Qb6 {[%emt 0:02:50]} 8. Qa4 {[%emt 0:06:30]} a6 {[%emt 0:03:44] 8...Nd7 is the fancy move.} (8... Rc8 {keeps more tension.} 9. Ne5 a6 10. Bxc6+ bxc6 11. O-O c4) 9. Bxc6+ {[%emt 0:01:32] The position is equal.} Qxc6 {[%emt 0:00:42]} 10. Qxc6+ {[%emt 0:04:59]} bxc6 {[%emt 0:00:13]} 11. O-O {[%emt 0:04:05] [#]} Be7 $146 {[%emt 0:10:41]} ({Predecessor:} 11... Nd7 12. c4 Be7 13. Rfc1 f6 14. Nb3 Rc8 15. Bg3 Bg4 16. dxc5 e5 17. cxd5 cxd5 {½-½ Ding,Y (2424)-Shen,Y (2465) Wch Rapid (Women) 2017 (2)}) 12. Ne5 {[%emt 0:19:18]} Rc8 {[%emt 0:02:40]} 13. Nb3 {[%emt 0:16:10]} c4 {[%emt 0:08:47]} 14. Na5 {[%emt 0:10:57]} c5 $1 {[%emt 0:01:41]} 15. Nec6 {[%emt 0:02:33]} cxd4 {[%emt 0:02:52]} 16. cxd4 {[%emt 0:01:02]} Nh5 {[%emt 0:09:41] [#] Hoping for ...Nxf4.} 17. Nxe7 {[%emt 0:05:27]} (17. Bb8 $1 $11 {keeps the balance.}) 17... Kxe7 $17 {[%emt 0:00:11]} 18. Rfc1 {[%emt 0:02:23] White is weak on the light squares} Nxf4 {[%emt 0:00:29]} 19. exf4 {[%emt 0:00:03]} Rc7 {[%emt 0:09:56] Black is more active.} 20. b4 {[%emt 0:03:04]} Kd6 {[%emt 0:12:29]} 21. Rc3 {[%emt 0:01:42]} Rb8 {[%emt 0:01:32]} 22. a3 {[%emt 0:00:04]} f6 {[%emt 0:04:57]} 23. Re1 {[%emt 0:03:14]} Re8 {[%emt 0:03:05]} 24. f3 {[%emt 0:07:24]} h5 {[%emt 0:01:35]} 25. Rd1 {[%emt 0:01:50]} (25. Kf2 $17 {keeps fighting.}) 25... Rec8 {[%emt 0:03:53]} (25... g5 $19 26. fxg5 fxg5) 26. h4 {[%emt 0:01:50] [#]} (26. Kf2 $17 {is a better defense.}) 26... e5 $1 $19 {[%emt 0:01:41]} 27. fxe5+ {[%emt 0:03:47]} fxe5 {[%emt 0:00:09]} 28. dxe5+ {[%emt 0:00:14]} Kxe5 {[%emt 0:00:15] ...d4 is the strong threat.} 29. Re3+ {[%emt 0:00:06]} Kd6 {[%emt 0:01:38] ...c3 would be deadly.} 30. Rc3 {[%emt 0:01:10]} Bd3 {[%emt 0:01:03] White must now prevent ...Re8.} 31. Kf2 {[%emt 0:01:01]} (31. Rd2 $17 {was worth a try.}) 31... d4 {[%emt 0:00:46]} 32. Rdxd3 {[%emt 0:00:45]} (32. Nxc4+ $17 Bxc4 33. Rxd4+ Ke7 34. Re4+ Kf7 35. Rf4+ Kg6 36. a4) 32... cxd3 {[%emt 0:00:15]} 33. Rxd3 {[%emt 0:00:04]} Kd5 {[%emt 0:01:02]} 34. Ke2 {[%emt 0:00:00] Weighted Error Value: White=0.42/Black=0.10 (very precise)} 0-1

[Event "1st FIDE Olympiad DIS 2023"]
[Site "Belgrade"]
[Date "2023.02.02"]
[Round "4.20"]
[White "Saidov, Sobirjon"]
[Black "Ilic, Slobodan S"]
[Result "1/2-1/2"]
[ECO "D35"]
[WhiteElo "1510"]
[BlackElo "2027"]
[Annotator "TA"]
[PlyCount "65"]
[EventDate "2023.01.30"]
[EventType "team-tourn"]
[EventCountry "SRB"]
[SourceTitle "playchess.com"]
[Source "ChessBase"]
[SourceQuality "1"]
[WhiteTeam "Uzbekistan"]
[BlackTeam "Bosnia  Herzegovina"]
[WhiteTeamCountry "UZB"]
[BlackTeamCountry "BIH"]
[TimeControl "40/5400+30:1800+30"]

{[%evp 20,65,-6,-6,-10,-14,0,0,0,0,0,0,0,0,0,-4,-4,-8,-16,-3,0,-33,-7,0,0,-14,-7,-1,0,0,0,0,15,19,66,66,67,63,59,0,0,0,69,0,0,0,0,-15]} 1. d4 {[%emt 0:00:21]} Nf6 {[%emt 0:00:21]} 2. c4 {[%emt 0:00:42]} e6 {[%emt 0:00:15]} 3. Nf3 {[%emt 0:01:38]} d5 {[%emt 0:00:40]} 4. Nc3 {[%emt 0:00:23]} Be7 {[%emt 0:00:44]} 5. cxd5 {[%emt 0:02:27]} exd5 {[%emt 0:00:24]} 6. Bg5 {[%emt 0:02:50]} c6 {[%emt 0:01:43]} 7. e3 {[%emt 0:02:01]} Bf5 {[%emt 0:02:07]} 8. Bd3 {[%emt 0:04:01]} Bxd3 {[%emt 0:00:54]} 9. Qxd3 {[%emt 0:00:30]} O-O {[%emt 0:00:55]} 10. O-O {[%emt 0:01:01]} Nbd7 {[%emt 0:01:24]} 11. Rac1 {[%emt 0:03:01]} Re8 {[%emt 0:01:54] D35: Queen's Gambit Declined: Exchange Variation.} 12. Rfe1 {[%emt 0:02:04]} h6 {[%emt 0:06:23]} 13. Bh4 {[%emt 0:03:55] [#]} Nh5 $146 {[%emt 0:09:39]} ({Predecessor:} 13... Nf8 14. Ne5 N6d7 15. Nxd7 Bxh4 16. Nxf8 Rxf8 17. e4 dxe4 18. Nxe4 Re8 19. b3 Qa5 {0-1 Roos,W (1713)-Heimann,K (1612) Muensterland Verbandsliga playoff 2022 (1.5)}) 14. Bxe7 {[%emt 0:02:08]} Qxe7 {[%emt 0:00:17]} 15. Nd2 {[%emt 0:05:51]} Nhf6 {[%emt 0:08:09]} 16. Na4 {[%emt 0:04:39]} Qd6 {[%emt 0:02:24]} 17. Nc5 {[%emt 0:03:18]} Nxc5 {[%emt 0:01:21]} (17... Ng4 {keeps more tension.} 18. Nf3 Nxc5 19. Rxc5 Nf6) 18. dxc5 {[%emt 0:01:04]} Qe7 {[%emt 0:06:11]} 19. b4 {[%emt 0:02:38]} a6 {[%emt 0:02:33]} 20. f3 {[%emt 0:03:54]} g6 {[%emt 0:06:29]} 21. Nb3 {[%emt 0:02:51]} Qc7 {[%emt 0:03:59]} 22. Qc3 {[%emt 0:02:17]} Nd7 {[%emt 0:05:49]} 23. Qd4 {[%emt 0:05:18]} h5 {[%emt 0:01:08]} 24. e4 {[%emt 0:07:12]} dxe4 {[%emt 0:00:00]} 25. Rxe4 {[%emt 0:05:29]} Nf8 {[%emt 0:04:27]} 26. Qd6 {[%emt 0:00:00] Prevents Rad8. Black is weak on the dark squares} Qc8 {[%emt 0:00:59]} (26... Qd8 $11) 27. Rce1 $1 $14 {[%emt 0:01:38] White has more active pieces.} Re6 {[%emt 0:05:29]} 28. Rxe6 {[%emt 0:02:32]} Nxe6 {[%emt 0:00:04]} 29. Nd4 {[%emt 0:02:13]} (29. Na5 $14) 29... Nxd4 $11 {[%emt 0:01:46]} 30. Qxd4 {[%emt 0:00:20]} Qf5 {[%emt 0:01:10]} (30... a5 $11) 31. Qe4 {[%emt 0:08:15]} (31. h4 $14) 31... Qxe4 {[%emt 0:01:07]} 32. Rxe4 {[%emt 0:00:51]} Kf8 {[%emt 0:00:57]} 33. a4 {Weighted Error Value: White=0.08 (flawless) /Black=0.11 (very precise)} 1/2-1/2

[Event "1st FIDE Olympiad DIS 2023"]
[Site "Belgrade"]
[Date "2023.02.02"]
[Round "4.21"]
[White "Sahin, Handenur"]
[Black "Jankunas, Tomas"]
[Result "1-0"]
[ECO "B07"]
[WhiteElo "1915"]
[BlackElo "2127"]
[Annotator "TA"]
[PlyCount "51"]
[EventDate "2023.01.30"]
[EventType "team-tourn"]
[EventCountry "SRB"]
[SourceTitle "playchess.com"]
[Source "ChessBase"]
[SourceQuality "1"]
[WhiteTeam "Turkey"]
[BlackTeam "Lithuania"]
[WhiteTeamCountry "TUR"]
[BlackTeamCountry "LTU"]
[TimeControl "40/5400+30:1800+30"]

{[%evp 12,51,26,14,24,27,22,11,36,35,37,23,29,27,35,21,50,38,64,66,360,366,352,354,453,454,458,437,688,686,691,685,684,627,628,634,629,627,625,606,880,879]} 1. d4 {[%emt 0:09:17]} Nf6 {[%emt 0:00:21]} 2. Nc3 {[%emt 0:00:53]} g6 {[%emt 0:00:40]} 3. e4 {[%emt 0:00:38]} d6 {[%emt 0:00:15]} 4. Bg5 {[%emt 0:01:10]} Bg7 {[%emt 0:00:33]} 5. e5 {[%emt 0:02:42]} Nfd7 {[%emt 0:15:08]} 6. exd6 {[%emt 0:02:01]} cxd6 {[%emt 0:00:42]} 7. Qd2 {[%emt 0:01:15]} h6 {[%emt 0:07:10] B07: Pirc Defence: Miscellaneous Systems.} 8. Be3 {[%emt 0:03:27]} Nf6 {[%emt 0:02:21]} 9. h3 {[%emt 0:03:42]} Qa5 {[%emt 0:09:52] The position is equal.} 10. Nf3 {[%emt 0:21:30] [#]} Be6 $146 {[%emt 0:12:13]} ({Predecessor:} 10... Nc6 11. Bd3 Nb4 12. Bb5+ Bd7 13. Bxd7+ Nxd7 14. O-O Nd5 15. Nxd5 Qxd5 16. b3 Qh5 {0-1 Gurskiy,D (1735)-Klepikov,N (2201) St Petersburg Korchnoi Memorial op 2019 (1)}) 11. Bb5+ {[%emt 0:09:36]} Nbd7 {[%emt 0:05:29]} 12. O-O {[%emt 0:06:22] Threatening d5.} Rc8 {[%emt 0:03:46]} 13. Rfe1 {[%emt 0:15:04]} a6 {[%emt 0:02:37]} 14. Ba4 {[%emt 0:03:35]} Nd5 {[%emt 0:12:33]} 15. Nxd5 {[%emt 0:07:53]} Qxd2 {[%emt 0:06:11][%mdl 8192] This costs Black the game.} ({Better is} 15... Qxa4 $14 16. b3 Qc6) 16. Bxd7+ $18 {[%emt 0:03:06][%mdl 64] [#] Remove Defender} ({Worse is} 16. Bxd2 Bxd5 17. c3 e6 $11) 16... Kxd7 {[%emt 0:01:57]} 17. Nb6+ {[%emt 0:00:58] Excellent horsemanship.} Kd8 {[%emt 0:05:41]} 18. Bxd2 {[%emt 0:03:09][%cal Be3d2,Bd2a5,Ba5b4,Bb4d6][%mdl 32] White is clearly winning.} ({Don't play} 18. Nxd2 Rxc2 19. Rac1 Rxc1 20. Rxc1 Rg8 $18) 18... Rxc2 {[%emt 0:00:38]} 19. Rac1 {[%emt 0:03:09]} Rxb2 {[%emt 0:02:32]} (19... Rxc1 $142 20. Rxc1 g5) 20. Ba5 {[%emt 0:02:12][%cal Oe1e6] Hoping for Rxe6!} Ke8 {[%emt 0:01:07]} 21. d5 {[%emt 0:00:54] Black must now prevent Rxe6.} Rb5 {[%emt 0:04:33]} 22. dxe6 {[%emt 0:01:09]} fxe6 {[%emt 0:00:04]} 23. Nc4 {[%emt 0:01:04]} Kf7 {[%emt 0:04:24]} 24. a4 {[%emt 0:02:13]} Rc5 {[%emt 0:01:03]} 25. Bb4 {[%emt 0:00:46]} Rf5 {[%emt 0:00:31] [#]} 26. Bxd6 $1 {[%emt 0:01:36] Weighted Error Value: White=0.06 (flawless) /Black=0.55} 1-0

[Event "1st FIDE Olympiad DIS 2023"]
[Site "Belgrade"]
[Date "2023.02.02"]
[Round "4.22"]
[White "Moldovanovic, Dragan"]
[Black "Deniz, Ugur"]
[Result "0-1"]
[ECO "E91"]
[WhiteElo "2019"]
[BlackElo "1946"]
[Annotator "TA"]
[PlyCount "62"]
[EventDate "2023.01.30"]
[EventType "team-tourn"]
[EventCountry "SRB"]
[SourceTitle "playchess.com"]
[Source "ChessBase"]
[SourceQuality "1"]
[WhiteTeam "Serbia"]
[BlackTeam "Turkey"]
[WhiteTeamCountry "SRB"]
[BlackTeamCountry "TUR"]
[TimeControl "40/5400+30:1800+30"]

{[%evp 21,62,7,10,-49,-22,-58,-68,-74,-71,-118,-122,-135,-132,-254,-255,-260,-262,-262,-253,-241,-255,-250,-171,-184,-185,-168,-135,-180,-127,-103,-67,-172,-172,-162,-153,-350,-351,-1064,-259,-1661,-1658,-1365,-1280]} 1. d4 {[%emt 0:00:08]} Nf6 {[%emt 0:00:18]} 2. c4 {[%emt 0:00:15]} g6 {[%emt 0:00:18]} 3. Nc3 {[%emt 0:00:17]} Bg7 {[%emt 0:00:22]} 4. e4 {[%emt 0:00:33]} d6 {[%emt 0:00:14]} 5. Nf3 {[%emt 0:00:42]} O-O {[%emt 0:00:39]} 6. Be2 {[%emt 0:00:45]} Bg4 {[%emt 0:03:58]} 7. O-O {[%emt 0:00:59]} Nfd7 {[%emt 0:00:32]} 8. h3 {[%emt 0:01:43]} Bxf3 {[%emt 0:00:17]} 9. Bxf3 {[%emt 0:00:12]} Nc6 {[%emt 0:01:12]} 10. Be3 {[%emt 0:03:43]} e5 {[%emt 0:00:39]} 11. d5 {[%emt 0:00:35]} Nd4 {[%emt 0:01:41]} 12. b4 {[%emt 0:06:37] E91: King's Indian: Classical: 6 Be2, unusual replies including 6...c5 and 6...Bg4.} (12. Be2 $11) 12... a5 $15 {[%emt 0:17:42] [#]} 13. Rb1 $146 {[%emt 0:10:53]} ({Predecessor:} 13. b5 b6 14. Be2 Nc5 15. f3 f5 16. Qd2 Qe7 17. Bd3 Rf7 18. Rae1 f4 19. Bf2 Bf6 {0-1 Toth,J (1851)-Dostan,J (2194) Eger Osz op 2008 (1)}) 13... axb4 {[%emt 0:16:48]} 14. Rxb4 {[%emt 0:01:58] Black is slightly better.} Nc5 {[%emt 0:00:12]} 15. Bc1 {[%emt 0:06:48]} (15. a4 $142) 15... f5 $17 {[%emt 0:02:53] Black is more active.} 16. exf5 {[%emt 0:02:36]} gxf5 {[%emt 0:01:52] And now ...e4 would win.} 17. Be3 {[%emt 0:01:36] [#]} (17. Bh5 $17 {was necessary.}) 17... Nxf3+ $1 $19 {[%emt 0:05:19][%mdl 64] Remove Defender} 18. Qxf3 {[%emt 0:00:33] [#]} e4 $1 {[%emt 0:00:17][%mdl 64] Discovered Attack} 19. Qg3 {[%emt 0:01:29] [#]} f4 $1 {[%emt 0:00:16][%mdl 576] Decoy} 20. Bxf4 {[%emt 0:00:27] [#]} Rxf4 {[%emt 0:00:21][%mdl 512]} 21. Qxf4 {[%emt 0:02:57]} Nd3 {[%emt 0:10:18]} 22. Qg4 {[%emt 0:00:43] Strongly threatening Rbb1.} Nxb4 {[%emt 0:00:21]} 23. Nxe4 {[%emt 0:00:12][%cal Bc3e4,Be4g5,Bg5e6][%mdl 32]} Qe7 {[%emt 0:04:46]} ({Stronger than} 23... Rxa2 24. Qe6+ Kh8 25. Ng5 Qxg5 26. Qe8+ $11) 24. Ng5 {[%emt 0:02:35]} h6 {[%emt 0:07:57]} ({Black should try} 24... Nd3 $19 25. Qf5 Bh8) 25. Ne6 $17 {[%emt 0:01:46]} Nd3 {[%emt 0:05:24]} ({Reject} 25... Rxa2 $6 26. Rb1 Na6 27. Rxb7 $14) 26. f4 {[%emt 0:03:07]} ({White has to play} 26. Qe4 $1 $15 Ra3 27. Rd1) 26... Nc5 {[%emt 0:06:09]} 27. f5 {[%emt 0:01:04] Black must now prevent f6.} Qf6 {[%emt 0:00:15]} (27... Rxa2 $2 28. f6 Qf7 29. fxg7 $18) 28. Qh5 $2 {[%emt 0:08:26] This costs White the game.} (28. Qe2 $17) 28... Rxa2 $19 {[%emt 0:02:34][%cal Ba8a2,Ba2a1,Ba1h1][%mdl 32]} 29. Rf3 $2 {[%emt 0:04:51]} (29. Qg4) 29... Ne4 $2 {[%emt 0:06:02]} (29... Nxe6 30. Rf1 Qd4+ 31. Kh1 Qxc4) 30. Rf4 $2 {[%emt 0:05:57]} (30. Qe8+ Kh7 31. Rf4) 30... Ra1+ {[%emt 0:00:19]} ({Weaker is} 30... Ng3 31. Qe8+ Kh7 32. Qg6+ Qxg6 33. fxg6+ Kg8 34. Rf7 Ne2+ 35. Kf1 Ng3+ 36. Kg1 Ne2+ 37. Kf1 Ng3+ 38. Kg1 $11) 31. Kh2 {[%emt 0:00:53] [#]} Rh1+ $3 {[%emt 0:00:00][%mdl 576] Decoy. Artfully played by Deniz.   Weighted Error Value: White=1.06/Black=0.37} 0-1